[Event "FIDE Grand Swiss 2023"]
[Site "Villa Marina, Douglas, Isle of Man"]
[Date "2023.10.28"]
[Round "4.32"]
[White "Nguyen, Thai Dai Van"]
[Black "Donchenko, Alexander"]
[Result "1-0"]
[WhiteElo "2618"]
[BlackElo "2676"]
[EventDate "2023.10.25"]
[ECO "D14"]
[PlyCount "61"]
[BlackFideId "24603295"]
[TimeControl "40/100 + 20/50 + 15 + 30s/move"]
[WhiteFideId "358878"]

1.c4 {[%clk 01:40:56] [%emt 00:00:03]} 1...c6 {[%clk 01:38:32] [%emt 00:02:29]} 
2.d4 {[%clk 01:38:40] [%emt 00:02:45]} 2...Nf6 {[%clk 01:38:52] [%emt 00:00:11]} 
3.Nc3 {[%clk 01:34:28] [%emt 00:04:42]} 3...d5 {[%clk 01:39:03] [%emt 00:00:19]} 
4.cxd5 {[%clk 01:34:45] [%emt 00:00:13]} 4...cxd5 {[%clk 01:39:27] [%emt
00:00:07]} 5.Nf3 {[%clk 01:34:38] [%emt 00:00:36]} 5...Nc6 {[%clk 01:39:42]
[%emt 00:00:15]} 6.Bf4 {[%clk 01:34:58] [%emt 00:00:09]} 6...Bf5 {[%clk
01:39:45] [%emt 00:00:27]} 7.e3 {[%clk 01:35:13] [%emt 00:00:15]} 7...e6 {[%clk
01:39:57] [%emt 00:00:18]} 8.Ne5 {[%clk 01:34:35] [%emt 00:01:08]} 8...Nd7 
{[%clk 01:28:23] [%emt 00:12:05]} 9.Nxc6 {[%clk 01:33:31] [%emt 00:01:33]} 
9...bxc6 {[%clk 01:28:50] [%emt 00:00:03]} 10.a3 {[%clk 01:30:35] [%emt
00:03:27]} 10...Be7 {[%clk 01:20:57] [%emt 00:08:23]} 11.Rc1 {[%clk 01:20:48]
[%emt 00:10:17]} 11...O-O {[%clk 01:11:33] [%emt 00:09:55]} 12.Na4 {[%clk
01:20:08] [%emt 00:01:09]} 12...Bf6 {[%clk 01:07:51] [%emt 00:04:12]} 13.Be2 
{[%clk 01:12:36] [%emt 00:08:02]} 13...e5 {[%clk 01:01:59] [%emt 00:06:22]} 
14.dxe5 {[%clk 01:11:49] [%emt 00:01:17]} 14...Nxe5 {[%clk 01:02:22] [%emt
00:00:07]} 15.O-O {[%clk 01:10:16] [%emt 00:02:02]} 15...Re8 {[%clk 00:58:06]
[%emt 00:04:47]} 16.b4 {[%clk 00:58:07] [%emt 00:12:38]} 16...Nc4 {[%clk
00:47:51] [%emt 00:10:46]} 17.Nc5 {[%clk 00:44:59] [%emt 00:13:38]} 17...Bb2 
{[%clk 00:37:52] [%emt 00:10:29]} 18.Bxc4 {[%clk 00:45:25] [%emt 00:00:05]} 
18...dxc4 {[%clk 00:38:04] [%emt 00:00:17]} 19.Rxc4 {[%clk 00:43:39] [%emt
00:02:15]} 19...Qxd1 {[%clk 00:34:48] [%emt 00:03:47]} 20.Rxd1 {[%clk 00:44:07]
[%emt 00:00:02]} 20...Bxa3 {[%clk 00:30:04] [%emt 00:05:14]} 21.Ra1 {[%clk
00:35:21] [%emt 00:09:16]} 21...Bb2 {[%clk 00:29:54] [%emt 00:00:40]} 22.Ra6 
{[%clk 00:35:47] [%emt 00:00:04]} 22...Red8 {[%clk 00:19:42] [%emt 00:10:42]} 
23.h3 {[%clk 00:35:46] [%emt 00:00:30]} 23...Rd1+ {[%clk 00:18:50] [%emt
00:01:23]} 24.Kh2 {[%clk 00:36:14] [%emt 00:00:02]} 24...Rc1 {[%clk 00:19:01]
[%emt 00:00:19]} 25.Rxc1 {[%clk 00:36:02] [%emt 00:00:42]} 25...Bxc1 {[%clk
00:19:29] [%emt 00:00:02]} 26.g4 {[%clk 00:17:03] [%emt 00:19:28]} 26...Bc8 
{[%clk 00:18:54] [%emt 00:01:05]} 27.Ra2 {[%clk 00:14:58] [%emt 00:02:36]} 
27...Be6 {[%clk 00:14:45] [%emt 00:04:39]} 28.Nxe6 {[%clk 00:15:07] [%emt
00:00:21]} 28...fxe6 {[%clk 00:15:14]} 29.Be5 {[%clk 00:15:01] [%emt 00:00:36]} 
29...a6 {[%clk 00:15:27] [%emt 00:00:17]} 30.Bc3 {[%clk 00:14:06] [%emt
00:01:24]} 30...Rd8 {[%clk 00:12:23] [%emt 00:03:35]} 31.Ra1 {[%clk 00:12:06]
[%emt 00:02:31]} 1-0

[Event "FIDE Grand Swiss 2023"]
[Site "Villa Marina, Douglas, Isle of Man"]
[Date "2023.10.28"]
[Round "4.33"]
[White "Matlakov, Maxim"]
[Black "Suleymanli, Aydin"]
[Result "1/2-1/2"]
[WhiteElo "2674"]
[BlackElo "2588"]
[EventDate "2023.10.25"]
[ECO "E48"]
[PlyCount "81"]
[BlackFideId "13413937"]
[TimeControl "40/100 + 20/50 + 15 + 30s/move"]
[WhiteFideId "4168003"]

1.d4 {[%clk 01:40:57] [%emt 00:00:03]} 1...Nf6 {[%clk 01:40:53] [%emt 00:00:08]} 
2.c4 {[%clk 01:41:19] [%emt 00:00:08]} 2...e6 {[%clk 01:41:18] [%emt 00:00:04]} 
3.Nc3 {[%clk 01:41:12] [%emt 00:00:37]} 3...Bb4 {[%clk 01:41:39] [%emt
00:00:09]} 4.e3 {[%emt 00:00:26]} 4...O-O {[%clk 01:41:56] [%emt 00:00:01]} 
5.Bd3 {[%clk 01:41:46] [%emt 00:00:13]} 5...d5 {[%clk 01:42:15] [%emt 00:00:10]} 
6.cxd5 {[%clk 01:42:00] [%emt 00:00:16]} 6...exd5 {[%clk 01:42:39] [%emt
00:00:06]} 7.a3 {[%clk 01:42:20] [%emt 00:00:11]} 7...Bd6 {[%clk 01:40:08] [%emt
00:02:59]} 8.Qc2 {[%clk 01:42:13] [%emt 00:00:39]} 8...b6 {[%clk 01:36:10] [%emt
00:04:27]} 9.Nb5 {[%clk 01:41:53] [%emt 00:00:51]} 9...c5 {[%clk 01:34:11] [%emt
00:02:29]} 10.b3 {[%clk 01:42:13] [%emt 00:00:10]} 10...Re8 {[%clk 01:20:56]
[%emt 00:13:45]} 11.Nxd6 {[%clk 01:30:50] [%emt 00:11:53]} 11...Qxd6 {[%clk
01:21:20] [%emt 00:00:05]} 12.Ne2 {[%clk 01:30:58] [%emt 00:00:22]} 12...Nbd7 
{[%clk 01:11:20] [%emt 00:10:31]} 13.Bb2 {[%clk 01:27:42] [%emt 00:03:46]} 
13...Bb7 {[%clk 01:09:04] [%emt 00:02:46]} 14.O-O {[%clk 01:22:38] [%emt
00:05:34]} 14...Rac8 {[%clk 01:02:15] [%emt 00:07:19]} 15.dxc5 {[%clk 01:20:05]
[%emt 00:03:03]} 15...bxc5 {[%clk 01:01:30] [%emt 00:01:15]} 16.Rad1 {[%clk
01:13:09] [%emt 00:07:26]} 16...Qb6 {[%clk 00:52:59] [%emt 00:09:01]} 17.Bf5 
{[%clk 00:50:01] [%emt 00:23:38]} 17...d4 {[%clk 00:49:36] [%emt 00:03:52]} 
18.Ng3 {[%clk 00:48:49] [%emt 00:01:42]} 18...Bd5 {[%clk 00:45:25] [%emt
00:04:41]} 19.Rd3 {[%clk 00:39:17] [%emt 00:10:02]} 19...Qb7 {[%clk 00:42:13]
[%emt 00:03:43]} 20.f3 {[%clk 00:39:23] [%emt 00:00:23]} 20...Rb8 {[%clk
00:40:46] [%emt 00:01:57]} 21.exd4 {[%clk 00:33:24] [%emt 00:06:29]} 21...Bxb3 
{[%clk 00:40:33] [%emt 00:00:43]} 22.Qc1 {[%clk 00:33:18] [%emt 00:00:36]} 
22...c4 {[%clk 00:38:51] [%emt 00:02:11]} 23.Re3 {[%clk 00:32:45] [%emt
00:01:04]} 23...Rxe3 {[%clk 00:36:24] [%emt 00:02:57]} 24.Qxe3 {[%clk 00:33:08]
[%emt 00:00:07]} 24...Nd5 {[%clk 00:36:43] [%emt 00:00:10]} 25.Qd2 {[%clk
00:31:32] [%emt 00:02:07]} 25...N7b6 {[%clk 00:26:47] [%emt 00:10:26]} 26.Ne4 
{[%clk 00:29:36] [%emt 00:02:24]} 26...Na4 {[%clk 00:16:55] [%emt 00:10:24]} 
27.Nc5 {[%clk 00:25:51] [%emt 00:04:15]} 27...Qe7 {[%clk 00:15:19] [%emt
00:02:05]} 28.Re1 {[%clk 00:17:45] [%emt 00:08:37]} 28...Qd6 {[%clk 00:13:26]
[%emt 00:02:23]} 29.Nxa4 {[%clk 00:13:05] [%emt 00:05:11]} 29...Bxa4 {[%clk
00:13:50] [%emt 00:00:05]} 30.Be4 {[%clk 00:13:10] [%emt 00:00:25]} 30...Bc6 
{[%clk 00:08:34] [%emt 00:05:46]} 31.Rc1 {[%clk 00:09:17] [%emt 00:04:22]} 
31...Nb6 {[%clk 00:07:31] [%emt 00:01:34]} 32.d5 {[%clk 00:09:25] [%emt
00:00:22]} 32...Bxd5 {[%clk 00:06:10] [%emt 00:01:51]} 33.Qd4 {[%clk 00:05:20]
[%emt 00:04:35]} 33...f6 {[%clk 00:05:22] [%emt 00:01:18]} 34.Rxc4 {[%clk
00:04:59]} 34...Qe6 {[%clk 00:04:15] [%emt 00:02:27]} 35.Rc7 {[%clk 00:04:10]
[%emt 00:01:20]} 35...Bxe4 {[%clk 00:03:41] [%emt 00:01:05]} 36.fxe4 {[%clk
00:04:06] [%emt 00:00:33]} 36...a6 {[%clk 00:01:11] [%emt 00:03:00]} 37.e5 
{[%clk 00:03:05] [%emt 00:01:31]} 37...Re8 {[%clk 00:00:55] [%emt 00:00:45]} 
38.Qe4 {[%clk 00:01:29] [%emt 00:02:07]} 38...Rc8 {[%clk 00:00:33] [%emt
00:00:52]} 39.Rxc8+ {[%clk 00:00:42] [%emt 00:01:18]} 39...Nxc8 {[%clk 00:01:01]
[%emt 00:00:02]} 40.Qb7 {[%clk 00:00:37] [%emt 00:00:33]} 40...fxe5 {[%clk
00:00:55] [%emt 00:00:37]} 41.Bxe5 {[%clk 00:00:43] [%emt 00:00:23]} 1/2-1/2

[Event "FIDE Grand Swiss 2023"]
[Site "Villa Marina, Douglas, Isle of Man"]
[Date "2023.10.28"]
[Round "4.34"]
[White "Mareco, Sandro"]
[Black "Bluebaum, Matthias"]
[Result "1/2-1/2"]
[WhiteElo "2606"]
[BlackElo "2668"]
[EventDate "2023.10.25"]
[ECO "A15"]
[PlyCount "69"]
[BlackFideId "24651516"]
[TimeControl "40/100 + 20/50 + 15 + 30s/move"]
[WhiteFideId "112275"]

1.c4 {[%clk 01:40:58] [%emt 00:00:01]} 1...Nf6 {[%clk 01:40:44] [%emt 00:00:16]} 
2.Nf3 {[%clk 01:41:07] [%emt 00:00:21]} 2...e6 {[%clk 01:40:52] [%emt 00:00:22]} 
3.Nc3 {[%clk 01:40:45] [%emt 00:00:52]} 3...d5 {[%clk 01:41:16] [%emt 00:00:07]} 
4.e3 {[%clk 01:41:08] [%emt 00:00:07]} 4...Bd6 {[%clk 01:40:53] [%emt 00:00:53]} 
5.b3 {[%clk 01:41:28] [%emt 00:00:10]} 5...O-O {[%clk 01:40:56] [%emt 00:00:26]} 
6.Bb2 {[%clk 01:41:52] [%emt 00:00:07]} 6...c5 {[%clk 01:41:22] [%emt 00:00:03]} 
7.g4 {[%clk 01:41:17] [%emt 00:01:05]} 7...Nc6 {[%clk 01:40:38] [%emt 00:01:15]} 
8.g5 {[%clk 01:41:40] [%emt 00:00:07]} 8...Ne4 {[%clk 01:41:04] [%emt 00:00:04]} 
9.h4 {[%clk 01:41:47] [%emt 00:00:22]} 9...a6 {[%clk 01:37:37] [%emt 00:03:57]} 
10.Bg2 {[%clk 01:41:25] [%emt 00:00:53]} 10...Nxc3 {[%clk 01:33:04] [%emt
00:05:03]} 11.Bxc3 {[%clk 01:41:50] [%emt 00:00:05]} 11...dxc4 {[%clk 01:30:07]
[%emt 00:03:27]} 12.bxc4 {[%clk 01:42:15] [%emt 00:00:05]} 12...e5 {[%clk
01:30:35] [%emt 00:00:02]} 13.Nh2 {[%clk 01:42:39] [%emt 00:00:06]} 13...Be6 
{[%clk 01:24:25] [%emt 00:06:40]} 14.Be4 {[%clk 01:41:08] [%emt 00:02:01]} 
14...f5 {[%clk 01:05:15] [%emt 00:19:39]} 15.gxf6 {[%clk 01:40:09] [%emt
00:01:30]} 15...Qxf6 {[%clk 01:05:20] [%emt 00:00:24]} 16.f4 {[%clk 01:40:09]
[%emt 00:00:30]} 16...Nd4 {[%clk 00:53:59] [%emt 00:11:51]} 17.Ng4 {[%clk
01:21:04] [%emt 00:19:35]} 17...Qf7 {[%clk 00:50:22] [%emt 00:04:07]} 18.O-O 
{[%clk 00:40:02] [%emt 00:41:32]} 18...Qe7 {[%clk 00:36:18] [%emt 00:14:34]} 
19.Nxe5 {[%clk 00:36:58] [%emt 00:03:34]} 19...Bxe5 {[%clk 00:24:02] [%emt
00:12:46]} 20.Qh5 {[%clk 00:36:09] [%emt 00:01:19]} 20...g6 {[%clk 00:22:27]
[%emt 00:02:05]} 21.Qxe5 {[%clk 00:36:33] [%emt 00:00:06]} 21...Ne2+ {[%clk
00:22:55] [%emt 00:00:03]} 22.Kg2 {[%clk 00:33:54] [%emt 00:03:08]} 22...Nxc3 
{[%clk 00:20:37] [%emt 00:02:48]} 23.Qxc3 {[%clk 00:32:52] [%emt 00:01:32]} 
23...Bh3+ {[%clk 00:20:17] [%emt 00:00:49]} 24.Kxh3 {[%clk 00:29:57] [%emt
00:03:26]} 24...Qxe4 {[%clk 00:20:37] [%emt 00:00:10]} 25.Qe5 {[%clk 00:27:26]
[%emt 00:03:01]} 25...Qxc4 {[%clk 00:17:25] [%emt 00:03:43]} 26.Rfc1 {[%clk
00:27:39] [%emt 00:00:16]} 26...Qd3 {[%clk 00:12:26] [%emt 00:05:30]} 27.Rxc5 
{[%clk 00:25:14] [%emt 00:02:55]} 27...Qxd2 {[%clk 00:11:49] [%emt 00:01:07]} 
28.Rc7 {[%clk 00:09:17] [%emt 00:16:26]} 28...Rf7 {[%clk 00:11:10] [%emt
00:01:08]} 29.Rac1 {[%clk 00:04:37] [%emt 00:05:11]} 29...Qxa2 {[%clk 00:10:14]
[%emt 00:01:27]} 30.Rc8+ {[%clk 00:01:26] [%emt 00:03:40]} 30...Rxc8 {[%clk
00:10:19] [%emt 00:00:25]} 31.Rxc8+ {[%clk 00:01:50] [%emt 00:00:06]} 31...Rf8 
{[%clk 00:10:48] [%emt 00:00:01]} 32.Rc7 {[%clk 00:01:33] [%emt 00:00:47]} 
32...Rf7 {[%clk 00:11:17] [%emt 00:00:01]} 33.Rc8+ {[%clk 00:01:26] [%emt
00:00:37]} 33...Rf8 {[%clk 00:11:46]} 34.Rc7 {[%clk 00:01:19] [%emt 00:00:37]} 
34...Rf7 {[%clk 00:12:15] [%emt 00:00:01]} 35.Rc8+ {[%clk 00:00:39] [%emt
00:00:39]} 1/2-1/2

[Event "FIDE Grand Swiss 2023"]
[Site "Villa Marina, Douglas, Isle of Man"]
[Date "2023.10.28"]
[Round "4.35"]
[White "Anton Guijarro, David"]
[Black "Petrosyan, Manuel"]
[Result "1/2-1/2"]
[WhiteElo "2653"]
[BlackElo "2604"]
[EventDate "2023.10.25"]
[ECO "C53"]
[PlyCount "61"]
[BlackFideId "13300857"]
[TimeControl "40/100 + 20/50 + 15 + 30s/move"]
[WhiteFideId "2285525"]

1.e4 {[%clk 01:40:53] [%emt 00:00:07]} 1...e5 {[%clk 01:39:04] [%emt 00:01:57]} 
2.Nf3 {[%clk 01:41:06] [%emt 00:00:16]} 2...Nc6 {[%clk 01:39:20] [%emt
00:00:14]} 3.Bc4 {[%clk 01:40:53] [%emt 00:00:43]} 3...Bc5 {[%clk 01:39:26]
[%emt 00:00:24]} 4.c3 {[%clk 01:40:59] [%emt 00:00:25]} 4...Nf6 {[%clk 01:39:49]
[%emt 00:00:06]} 5.d4 {[%clk 01:41:12] [%emt 00:00:17]} 5...exd4 {[%clk
01:39:52] [%emt 00:00:27]} 6.e5 {[%clk 01:41:33] [%emt 00:00:10]} 6...d5 {[%clk
01:39:47] [%emt 00:00:34]} 7.Bb5 {[%clk 01:41:43] [%emt 00:00:20]} 7...Ne4 
{[%clk 01:40:04] [%emt 00:00:13]} 8.cxd4 {[%clk 01:42:04] [%emt 00:00:09]} 
8...Bb6 {[%clk 01:40:06] [%emt 00:00:28]} 9.Nc3 {[%clk 01:42:07] [%emt
00:00:27]} 9...O-O {[%clk 01:38:59] [%emt 00:01:37]} 10.Be3 {[%clk 01:42:15]
[%emt 00:00:22]} 10...f5 {[%clk 01:32:22] [%emt 00:07:07]} 11.exf6 {[%clk
01:41:38] [%emt 00:01:08]} 11...Nxf6 {[%clk 01:32:04] [%emt 00:00:48]} 12.h3 
{[%clk 01:30:13] [%emt 00:11:54]} 12...Ne7 {[%clk 01:28:01] [%emt 00:04:33]} 
13.g4 {[%clk 01:26:00] [%emt 00:04:44]} 13...Ba5 {[%clk 01:03:10] [%emt
00:25:21]} 14.O-O {[%clk 00:53:23] [%emt 00:33:06]} 14...Bxc3 {[%clk 00:47:14]
[%emt 00:16:26]} 15.bxc3 {[%clk 00:53:48] [%emt 00:00:05]} 15...Ne4 {[%clk
00:47:05] [%emt 00:00:39]} 16.Ng5 {[%clk 00:37:48] [%emt 00:16:30]} 16...Ng6 
{[%clk 00:37:55] [%emt 00:09:39]} 17.Nxe4 {[%clk 00:37:49] [%emt 00:00:30]} 
17...dxe4 {[%clk 00:38:21] [%emt 00:00:05]} 18.f4 {[%clk 00:38:00] [%emt
00:00:19]} 18...exf3 {[%clk 00:35:30] [%emt 00:03:21]} 19.Bc4+ {[%clk 00:38:11]
[%emt 00:00:19]} 19...Kh8 {[%clk 00:35:56] [%emt 00:00:04]} 20.Rxf3 {[%clk
00:38:36] [%emt 00:00:05]} 20...Bd7 {[%clk 00:35:27] [%emt 00:00:59]} 21.Qe2 
{[%clk 00:34:20] [%emt 00:04:45]} 21...Rxf3 {[%clk 00:24:31]} 22.Qxf3 {[%clk
00:34:48] [%emt 00:11:29]} 22...Bc6 {[%clk 00:24:56] [%emt 00:00:05]} 23.d5 
{[%clk 00:30:57] [%emt 00:04:21]} 23...Ne5 {[%clk 00:25:02] [%emt 00:00:24]} 
24.Qe4 {[%clk 00:31:11] [%emt 00:00:15]} 24...Nxc4 {[%clk 00:24:53] [%emt
00:00:39]} 25.dxc6 {[%clk 00:31:24] [%emt 00:00:18]} 25...Nxe3 {[%clk 00:10:51]
[%emt 00:14:32]} 26.cxb7 {[%clk 00:31:37] [%emt 00:00:17]} 26...Rb8 {[%clk
00:11:13] [%emt 00:00:08]} 27.Qxe3 {[%clk 00:31:00] [%emt 00:01:06]} 27...Rxb7 
{[%clk 00:11:40] [%emt 00:00:04]} 28.Re1 {[%clk 00:28:18] [%emt 00:03:11]} 
28...h6 {[%clk 00:10:39] [%emt 00:01:31]} 29.Qe8+ {[%clk 00:28:26] [%emt
00:00:23]} 29...Qxe8 {[%clk 00:11:04] [%emt 00:00:05]} 30.Rxe8+ {[%clk 00:28:52]
[%emt 00:00:03]} 30...Kh7 {[%clk 00:11:29] [%emt 00:00:05]} 31.Re5 {[%clk
00:29:13] [%emt 00:00:10]} 1/2-1/2

[Event "FIDE Grand Swiss 2023"]
[Site "Villa Marina, Douglas, Isle of Man"]
[Date "2023.10.28"]
[Round "4.36"]
[White "Dardha, Daniel"]
[Black "Ivanchuk, Vasyl"]
[Result "1/2-1/2"]
[WhiteElo "2580"]
[BlackElo "2653"]
[EventDate "2023.10.25"]
[ECO "E07"]
[PlyCount "42"]
[BlackFideId "14100010"]
[TimeControl "40/100 + 20/50 + 15 + 30s/move"]
[WhiteFideId "240990"]

1.d4 {[%clk 01:40:57] [%emt 00:00:03]} 1...Nf6 {[%clk 01:40:54] [%emt 00:00:06]} 
2.c4 {[%clk 01:41:18] [%emt 00:00:08]} 2...e6 {[%clk 01:41:23] [%emt 00:00:03]} 
3.g3 {[%clk 01:41:35] [%emt 00:00:13]} 3...d5 {[%clk 01:41:36] [%emt 00:00:17]} 
4.Bg2 {[%clk 01:41:55] [%emt 00:00:10]} 4...Be7 {[%clk 01:42:03] [%emt
00:00:03]} 5.Nf3 {[%clk 01:42:07] [%emt 00:00:17]} 5...O-O {[%clk 01:42:27]
[%emt 00:00:06]} 6.Nc3 {[%clk 01:41:29] [%emt 00:01:07]} 6...c6 {[%clk 01:42:47]
[%emt 00:00:11]} 7.O-O {[%clk 01:40:21] [%emt 00:01:38]} 7...Nbd7 {[%clk
01:43:15] [%emt 00:00:03]} 8.Qd3 {[%clk 01:38:05] [%emt 00:02:45]} 8...b6 
{[%clk 01:42:40] [%emt 00:01:05]} 9.e4 {[%clk 01:37:18] [%emt 00:01:18]} 9...a5 
{[%clk 01:43:07] [%emt 00:00:03]} 10.Rd1 {[%clk 01:32:05] [%emt 00:05:42]} 
10...Ba6 {[%clk 01:42:31] [%emt 00:01:06]} 11.exd5 {[%clk 01:26:14] [%emt
00:06:22]} 11...cxd5 {[%clk 01:40:47] [%emt 00:02:14]} 12.b3 {[%clk 01:24:50]
[%emt 00:01:53]} 12...Qc7 {[%clk 01:24:12] [%emt 00:17:05]} 13.Nb5 {[%clk
01:15:11] [%emt 00:10:09]} 13...Bxb5 {[%clk 01:24:10] [%emt 00:00:33]} 14.cxb5 
{[%clk 01:15:37] [%emt 00:00:04]} 14...Rfc8 {[%clk 01:24:28] [%emt 00:00:12]} 
15.Bf4 {[%clk 01:12:26] [%emt 00:03:39]} 15...Qc2 {[%clk 01:17:47] [%emt
00:07:12]} 16.Qxc2 {[%clk 00:56:54] [%emt 00:16:02]} 16...Rxc2 {[%clk 01:18:04]
[%emt 00:00:13]} 17.Ne1 {[%clk 00:57:14] [%emt 00:00:10]} 17...Rc3 {[%clk
01:18:02] [%emt 00:00:32]} 18.Bd2 {[%clk 00:56:25] [%emt 00:01:19]} 18...Rc7 
{[%clk 01:18:21] [%emt 00:00:11]} 19.Bf4 {[%clk 00:56:25] [%emt 00:00:30]} 
19...Rc3 {[%clk 01:18:48] [%emt 00:00:04]} 20.Bd2 {[%clk 00:56:38] [%emt
00:00:17]} 20...Rc7 {[%clk 01:19:12] [%emt 00:00:06]} 21.Bf4 {[%clk 00:56:56]
[%emt 00:00:12]} 21...Rc3 {[%clk 01:19:30] [%emt 00:01:36]} 1/2-1/2

[Event "FIDE Grand Swiss 2023"]
[Site "Villa Marina, Douglas, Isle of Man"]
[Date "2023.10.28"]
[Round "4.37"]
[White "Bartel, Mateusz"]
[Black "Kozak, Adam"]
[Result "1-0"]
[WhiteElo "2651"]
[BlackElo "2566"]
[EventDate "2023.10.25"]
[ECO "C92"]
[PlyCount "75"]
[BlackFideId "753246"]
[TimeControl "40/100 + 20/50 + 15 + 30s/move"]
[WhiteFideId "1112635"]

1.e4 {[%clk 01:40:57] [%emt 00:00:02]} 1...e5 {[%clk 01:40:53] [%emt 00:00:07]} 
2.Nf3 {[%clk 01:41:21] [%emt 00:00:05]} 2...Nc6 {[%clk 01:41:18] [%emt
00:00:07]} 3.Bb5 {[%clk 01:41:46] [%emt 00:00:03]} 3...a6 {[%clk 01:40:22] [%emt
00:01:27]} 4.Ba4 {[%clk 01:42:11] [%emt 00:00:05]} 4...Nf6 {[%clk 01:40:47]
[%emt 00:00:05]} 5.O-O {[%clk 01:42:30] [%emt 00:00:09]} 5...Be7 {[%clk
01:41:12] [%emt 00:00:07]} 6.Re1 {[%clk 01:42:53] [%emt 00:00:06]} 6...b5 
{[%clk 01:41:13] [%emt 00:00:30]} 7.Bb3 {[%clk 01:43:20] [%emt 00:00:02]} 
7...d6 {[%clk 01:41:30] [%emt 00:00:14]} 8.c3 {[%clk 01:43:44] [%emt 00:00:06]} 
8...O-O {[%clk 01:41:46] [%emt 00:00:13]} 9.h3 {[%clk 01:44:11] [%emt 00:00:04]} 
9...a5 {[%clk 01:38:25] [%emt 00:03:51]} 10.d4 {[%clk 01:42:18] [%emt 00:02:23]} 
10...a4 {[%clk 01:32:23] [%emt 00:06:33]} 11.Bc2 {[%clk 01:41:24] [%emt
00:01:24]} 11...Bd7 {[%clk 01:32:14] [%emt 00:00:39]} 12.Na3 {[%clk 01:29:36]
[%emt 00:12:17]} 12...Rb8 {[%clk 01:14:01] [%emt 00:18:45]} 13.d5 {[%clk
01:27:43] [%emt 00:02:21]} 13...Na5 {[%clk 01:10:21] [%emt 00:04:10]} 14.b4 
{[%clk 01:28:02] [%emt 00:00:11]} 14...axb3 {[%clk 01:09:41] [%emt 00:01:10]} 
15.axb3 {[%clk 01:28:30] [%emt 00:00:02]} 15...c6 {[%clk 01:09:41] [%emt
00:00:31]} 16.b4 {[%clk 01:24:46] [%emt 00:04:13]} 16...Nb7 {[%clk 01:05:57]
[%emt 00:04:15]} 17.dxc6 {[%clk 01:13:11] [%emt 00:12:05]} 17...Bxc6 {[%clk
01:06:11] [%emt 00:00:15]} 18.Qe2 {[%clk 01:13:39] [%emt 00:00:02]} 18...Qe8 
{[%clk 01:03:00] [%emt 00:03:41]} 19.Nh4 {[%clk 01:05:03] [%emt 00:09:06]} 
19...Nd8 {[%clk 00:59:11] [%emt 00:04:20]} 20.Nf5 {[%clk 01:04:24] [%emt
00:01:07]} 20...g6 {[%clk 00:57:46] [%emt 00:01:57]} 21.Nxe7+ {[%clk 00:58:44]
[%emt 00:06:09]} 21...Qxe7 {[%clk 00:58:08] [%emt 00:00:09]} 22.Bd3 {[%clk
00:59:12] [%emt 00:00:02]} 22...Ne6 {[%clk 00:54:44] [%emt 00:03:53]} 23.Nxb5 
{[%clk 00:58:23] [%emt 00:01:19]} 23...Bxb5 {[%clk 00:54:29] [%emt 00:00:45]} 
24.Bxb5 {[%clk 00:58:44] [%emt 00:00:09]} 24...Nxe4 {[%clk 00:54:47] [%emt
00:00:12]} 25.Bc6 {[%clk 00:48:25] [%emt 00:10:49]} 25...d5 {[%clk 00:36:02]
[%emt 00:19:16]} 26.b5 {[%clk 00:38:38] [%emt 00:10:16]} 26...Rfd8 {[%clk
00:25:13] [%emt 00:11:19]} 27.Qe3 {[%clk 00:35:05] [%emt 00:04:03]} 27...Qc5 
{[%clk 00:05:42] [%emt 00:20:01]} 28.Qxc5 {[%clk 00:35:12] [%emt 00:00:22]} 
28...N4xc5 {[%clk 00:05:37] [%emt 00:00:36]} 29.Rxe5 {[%clk 00:34:02] [%emt
00:01:40]} 29...d4 {[%clk 00:02:45] [%emt 00:03:22]} 30.c4 {[%clk 00:32:29]
[%emt 00:02:04]} 30...d3 {[%clk 00:02:47] [%emt 00:00:28]} 31.Be3 {[%clk
00:32:05] [%emt 00:00:54]} 31...Nb3 {[%clk 00:00:45] [%emt 00:02:31]} 32.Rd1 
{[%clk 00:31:46] [%emt 00:00:48]} 32...Nbd4 {[%clk 00:00:34] [%emt 00:00:42]} 
33.Bd5 {[%clk 00:31:31] [%emt 00:00:45]} 33...Nxb5 {[%clk 00:00:33] [%emt
00:00:31]} 34.cxb5 {[%clk 00:30:43] [%emt 00:01:17]} 34...Rxb5 {[%clk 00:00:55]
[%emt 00:00:09]} 35.Rxd3 {[%clk 00:30:40] [%emt 00:00:34]} 35...Nc7 {[%clk
00:00:35] [%emt 00:00:49]} 36.Bxf7+ {[%clk 00:30:17] [%emt 00:00:52]} 36...Kxf7 
{[%clk 00:00:56] [%emt 00:00:09]} 37.Rxb5 {[%clk 00:30:42] [%emt 00:00:06]} 
37...Rxd3 {[%clk 00:01:19] [%emt 00:00:07]} 38.Rb7 {[%clk 00:31:06] [%emt
00:00:06]} 1-0